[Event "44th Chess Olympiad Open 2022"]
[Site "Chennai"]
[Date "2022.08.07"]
[Round "9.29"]
[White "Pinto, Daniel"]
[Black "Blohberger, Felix"]
[Result "0-1"]
[WhiteElo "2249"]
[BlackElo "2492"]
[Annotator "TA"]
[PlyCount "72"]
[EventDate "2022.??.??"]
[TimeControl "60"]

{[%evp 9,72,8,8,-16,7,-9,-9,-124,-125,-153,-160,-243,-239,-234,-230,-240,-243,
-233,-247,-233,-186,-231,-218,-245,-250,-237,-238,-266,-240,-256,-258,-266,
-251,-232,-242,-235,-220,-401,-416,-395,-385,-719,-175,-153,-158,-172,-171,
-177,-171,-184,-187,-186,-186,-194,-198,-445,-407,-464,-455,-514,-511,-502,
-486,-740,-716]} 1. c4 {[%emt 0:00:09]} c6 {[%emt 0:06:04]} 2. Nf3 {[%emt 0:00:
00]} d5 {[%emt 0:04:03]} 3. e3 {[%emt 0:00:30]} Nf6 {[%emt 0:00:11][%cal Yg8f6,
Yf6e4,Ye4f2]} 4. b3 {[%emt 0:00:23]} Bf5 {[%emt 0:01:03]} 5. Nh4 {[%emt 0:06:
23]} Bg4 {[%emt 0:00:57]} 6. Qc2 {[%emt 0:00:30] [#] A12: English Opening: 1...
c6 with b3 by White.} e6 $146 {[%emt 0:05:57]} ({Predecessor:} 6... e5 7. h3
Be6 8. Nf3 Nbd7 9. Ng5 Be7 10. Bb2 O-O 11. Be2 h6 12. Nxe6 fxe6 {1-0 (50)
Strutinskaya,G (2317)-Martynyuk,E (2083) Sochi 2014}) 7. h3 {[%emt 0:00:00]}
Bh5 {[%emt 0:00:09]} 8. g4 {[%emt 0:02:33] [#]} (8. Bb2 $11 {keeps the balance.
}) 8... Ne4 $1 $17 {[%emt 0:00:23]} 9. d3 {[%emt 0:10:04]} (9. gxh5 Qf6) 9...
Bb4+ {[%emt 0:03:02]} (9... Qxh4 10. dxe4 Bg6 11. cxd5 $15) 10. Nd2 {[%emt 0:
04:27] [#]} (10. Bd2 $17 Nxd2 11. Nxd2) 10... Nxf2 $1 $19 {[%emt 0:00:00]} ({
Worse is} 10... Qxh4 11. dxe4 Bg6 12. cxd5 $15) 11. Kxf2 {[%emt 0:00:55]} Qxh4+
{[%emt 0:00:08]} 12. Kg2 {[%emt 0:00:19] [#] Threatens to win with Nf3.} Bd6 $1
{[%emt 0:02:57][%csl Gd6][%cal Rh4g3]} 13. Be2 {[%emt 0:00:05]} Bg6 {[%emt 0:
00:17]} ({Stronger than} 13... Be5 14. Bb2 Qg3+ 15. Kf1 $17) 14. Nf3 {[%emt 0:
06:30]} Qg3+ {[%emt 0:01:19]} 15. Kf1 {[%emt 0:00:06]} Na6 {[%emt 0:00:00]} 16.
Bd2 {[%emt 0:04:15]} Nb4 {[%emt 0:19:15]} 17. Bxb4 {[%emt 0:00:13]} Bxb4 {
[%emt 0:00:04]} 18. Rg1 {[%emt 0:04:13]} Qc7 {[%emt 0:02:01]} 19. h4 {[%emt 0:
36:00]} h5 {[%emt 0:05:43]} 20. Qb2 {[%emt 0:00:27]} hxg4 {[%emt 0:00:00]} 21.
Rxg4 {[%emt 0:02:40]} Bh5 {[%emt 0:00:00] This bishop pair is nice.} 22. Qxg7 {
[%emt 0:02:09]} O-O-O {[%emt 0:00:07][%cal Yb4c3] Strongly threatening ...Bc3!}
23. cxd5 $2 {[%emt 0:00:14] [#]} (23. Rg1) 23... Bc3 $1 {[%emt 0:01:32] The
board is on fire.} 24. Qxc3 {[%emt 0:00:07] And now Rf4 would win.} Bxg4 {
[%emt 0:00:05]} 25. dxc6 $2 {[%emt 0:00:10]} (25. Qe5 exd5 26. Qxc7+ Kxc7 27.
Kf2) 25... Qxc6 $2 {[%emt 0:06:51]} (25... Qg3 {[%cal Rg4h3]} 26. cxb7+ Kxb7
27. Qb4+ Ka8 28. Qe4+ Rd5) 26. Qxc6+ {[%emt 0:00:00]} bxc6 {[%emt 0:00:04]} 27.
Rc1 {[%emt 0:00:09]} Bxf3 {[%emt 0:04:43]} 28. Bxf3 {[%emt 0:00:46]} Rxh4 {
[%emt 0:00:18]} ({Weaker is} 28... Rxd3 29. Rxc6+ Kd7 30. Ke2) 29. Rxc6+ {
[%emt 0:01:42] Endgame KRR-KRB} Kb8 {[%emt 0:00:06]} 30. d4 {[%emt 0:00:25]}
Rh3 {[%emt 0:01:48]} 31. Kg2 {[%emt 0:00:00]} Rdh8 {[%emt 0:00:07] Hoping for .
..Rh2+.} 32. Rc5 $2 {[%emt 0:01:00]} (32. Rc3) 32... Rh2+ {[%emt 0:00:19]} 33.
Kg1 {[%emt 0:00:24]} Rxa2 {[%emt 0:00:00] Black is clearly winning.} 34. Rb5+ {
[%emt 0:00:05]} Kc8 {[%emt 0:03:36]} 35. Rc5+ {[%emt 0:01:08]} Kd7 {[%emt 0:00:
18]} 36. Rb5 {[%emt 0:02:12]} (36. d5 $142) 36... Rc8 {[%emt 0:02:38] White
got outplayed after the opening. Weighted Error Value: White=0.63/Black=0.24 
(precise)} 0-1

[Event "44th Chess Olympiad Open 2022"]
[Site "Chennai"]
[Date "2022.08.07"]
[Round "9.30"]
[White "Amin, Bassem"]
[Black "Saraci, Nderim"]
[Result "1/2-1/2"]
[WhiteElo "2680"]
[BlackElo "2495"]
[Annotator "TA"]
[PlyCount "140"]
[EventDate "2022.??.??"]
[TimeControl "60"]

{[%evp 11,139,10,7,0,0,0,10,0,-9,-25,-11,-55,-31,-63,22,8,44,36,46,47,70,83,77,
95,104,94,78,85,69,76,83,83,87,56,109,102,110,49,49,49,49,2,2,4,8,0,0,0,0,8,8,
8,8,0,61,9,9,9,9,0,0,0,0,0,16,0,0,0,0,0,0,0,0,0,0,0,8,8,8,0,0,0,0,0,0,0,0,0,0,
0,0,0,0,0,0,0,0,0,0,0,0,0,0,0,0,0,0,0,0,0,0,0,0,0,0,0,0,0,0,0,0,0,0,0,0,0,0,0,
0,0]} 1. Nf3 {[%emt 0:00:40]} Nf6 {[%emt 0:01:24]} 2. g3 {[%emt 0:00:10]} b6 {
[%emt 0:00:22]} 3. Bg2 {[%emt 0:00:09]} Bb7 {[%emt 0:00:08]} 4. O-O {[%emt 0:
00:00]} e6 {[%emt 0:03:02]} 5. d3 {[%emt 0:00:40]} c5 {[%emt 0:04:46]} 6. e4 {
[%emt 0:00:15]} d5 {[%emt 0:07:20]} 7. e5 {[%emt 0:00:25] A05: Réti Opening:
1 Nf3 Nf6.} Nfd7 {[%emt 0:00:33]} 8. Re1 {[%emt 0:01:03]} Nc6 {[%emt 0:00:53]}
9. h4 {[%emt 0:00:23]} Be7 {[%emt 0:01:05]} 10. c4 {[%emt 0:01:16]} d4 $1 {
[%emt 0:20:13] [#]} 11. a3 $146 {[%emt 0:17:06]} ({Predecessor:} 11. Bf4 h6 12.
h5 g5 13. hxg6 fxg6 14. b4 g5 15. Bd2 Qc7 16. Na3 cxb4 17. Nb5 {1-0 (56) Amin,
B (2680)-Saeed,I (2409) Dubai 2021}) 11... a6 {[%emt 0:02:11]} 12. Nbd2 {
[%emt 0:07:15][%cal Yb2b4]} Qc7 {[%emt 0:02:13]} (12... Ra7 $1 $15) 13. Ne4 $11
{[%emt 0:00:29]} Ncxe5 {[%emt 0:18:01]} 14. Nxe5 {[%emt 0:00:18]} Nxe5 {
[%emt 0:00:06]} 15. Bf4 {[%emt 0:00:08] Strongly threatening Qh5.} f6 {[%emt 0:
00:00]} 16. Qh5+ {[%emt 0:05:36]} g6 {[%emt 0:03:18] [#]} 17. Nxf6+ {[%emt 0:
00:00]} Bxf6 {[%emt 0:00:12]} 18. Bxe5 {[%emt 0:00:12]} Bxe5 {[%emt 0:03:38]}
19. Qxe5 {[%emt 0:00:50]} Qxe5 {[%emt 0:00:07]} 20. Rxe5 {[%emt 0:00:05]} Bxg2
{[%emt 0:00:07]} 21. Kxg2 $16 {[%emt 0:00:29] Endgame KRR-KRR} Kd7 {[%emt 0:00:
40]} 22. h5 {[%emt 0:01:40] White is more active.} Raf8 {[%emt 0:00:00]} (22...
a5 $14) 23. Rae1 {[%emt 0:00:21]} Rf6 {[%emt 0:00:10]} 24. f4 {[%emt 0:00:12]}
(24. b4 $16) 24... Rg8 $14 {[%emt 0:01:46]} 25. b4 {[%emt 0:00:00]} gxh5 {
[%emt 0:05:08]} 26. Rxh5 {[%emt 0:01:33]} (26. Kf3 $1 $14) 26... Rxf4 $1 $11 {
[%emt 0:01:26]} 27. Rxh7+ {[%emt 0:02:41]} ({Don't do} 27. bxc5 bxc5 28. Rxh7+
Kd6 $14) 27... Kd6 {[%emt 0:02:00]} 28. bxc5+ {[%emt 0:07:33]} bxc5 {[%emt 0:
00:10]} 29. Rb1 {[%emt 0:00:07]} Rfg4 {[%emt 0:01:16]} 30. Rb6+ {[%emt 0:00:15]
} Ke5 {[%emt 0:00:08]} 31. Rh3 {[%emt 0:00:15]} R4g5 {[%emt 0:00:00]} 32. Rxa6
{[%emt 0:00:49]} R8g6 {[%emt 0:07:26]} (32... Kf6 $11) 33. Rb6 {[%emt 0:12:35]}
({White should try} 33. a4 $1 $14) 33... Kf6 $1 {[%emt 0:00:00] The position
is equal.} 34. Rb2 {[%emt 0:00:24]} Re5 {[%emt 0:00:00]} 35. Rh1 {[%emt 0:00:
22]} Re3 {[%emt 0:00:00][%csl Yd3,Yg3]} 36. Rf1+ {[%emt 0:00:02]} Ke7 {[%emt 0:
01:06]} (36... Ke5 $5 37. Rf3 Rf6 38. Rxf6 Kxf6 $11) 37. Rf3 {[%emt 0:00:01] 
[#] Black must now prevent Rxe3.} Re1 {[%emt 0:00:09]} 38. Ra2 {[%emt 0:03:29]}
Rh6 {[%emt 0:06:42]} 39. a4 {[%emt 0:24:33] Black should prevent Rf1.} Reh1 {
[%emt 0:02:36][%csl Gh1][%cal Rh6h2]} 40. Rff2 {[%emt 0:00:00]} R6h2+ {[%emt 0:
00:58]} 41. Kf3 {[%emt 0:30:01]} Rxf2+ {[%emt 0:01:06]} 42. Rxf2 {[%emt 0:00:
00] KR-KR} Rd1 {[%emt 0:02:34]} 43. Ke4 {[%emt 0:00:00]} Re1+ {[%emt 0:02:36]}
44. Kf4 {[%emt 0:00:00]} Ra1 {[%emt 0:08:16] Prevents Ra2.} 45. Rh2 {[%emt 0:
00:00]} Rf1+ {[%emt 0:04:46]} 46. Kg4 {[%emt 0:00:00] Ra2 is the strong threat.
} Ra1 {[%emt 0:02:07] Prevents Ra2.} 47. Kg5 {[%emt 0:00:00]} Rxa4 {[%emt 0:00:
25]} 48. g4 {[%emt 0:00:00]} Ra1 {[%emt 0:01:30]} 49. Rh7+ {[%emt 0:00:00]} Kd6
{[%emt 0:00:19]} 50. Rh3 {[%emt 0:00:00]} Re1 {[%emt 0:00:00] And now ...Re3
would win.} 51. Rf3 {[%emt 0:00:00]} e5 {[%emt 0:03:49]} 52. Rf6+ {[%emt 0:00:
00]} Ke7 {[%emt 0:00:22]} 53. Rc6 {[%emt 0:00:00]} e4 {[%emt 0:00:50]} 54. dxe4
{[%emt 0:00:08]} d3 {[%emt 0:00:09]} 55. Rc7+ $1 {[%emt 0:00:05]} Ke6 {[%emt 0:
00:49]} 56. Rc6+ {[%emt 0:00:03]} Ke7 {[%emt 0:00:00]} 57. Rc7+ $1 {[%emt 0:00:
13]} Kd6 {[%emt 0:01:27]} 58. Rc8 {[%emt 0:00:06]} Ke5 {[%emt 0:01:10] aiming
for ...d2.} 59. Rxc5+ {[%emt 0:02:38]} Kxe4 {[%emt 0:00:15]} 60. Rd5 {[%emt 0:
00:28]} Rc1 {[%emt 0:00:08]} 61. Kf6 {[%emt 0:00:00]} Rxc4 {[%emt 0:00:15]} 62.
Re5+ {[%emt 0:01:26]} Kf4 {[%emt 0:03:22]} 63. Rd5 {[%emt 0:00:08]} Rc6+ {
[%emt 0:01:08]} 64. Kf7 {[%emt 0:00:42]} Ke4 {[%emt 0:00:08]} 65. Rxd3 $1 {
[%emt 0:01:30]} Kxd3 {[%emt 0:00:07] KR-KP} 66. g5 {[%emt 0:00:01]} Ke4 {
[%emt 0:00:18]} 67. g6 {[%emt 0:00:07]} Kf5 {[%emt 0:00:00] ( -> ...Rc7+)} 68.
g7 {[%emt 0:00:03]} Rc7+ {[%emt 0:00:31]} 69. Kg8 {[%emt 0:00:19]} Kg6 {
[%emt 0:01:26]} 70. Kh8 {[%emt 0:00:04]} Rxg7 {[%emt 0:00:00] Weighted Error
Value: White=0.08 (flawless) /Black=0.08 (flawless)} 1/2-1/2

[Event "44th Chess Olympiad Open 2022"]
[Site "Chennai"]
[Date "2022.08.07"]
[Round "9.30"]
[White "Fawzy, Adham"]
[Black "Makolli, Perparim"]
[Result "1-0"]
[WhiteElo "2471"]
[BlackElo "2247"]
[Annotator "TA"]
[PlyCount "65"]
[EventDate "2022.??.??"]
[TimeControl "60"]

{[%evp 13,65,11,23,5,8,18,4,0,11,11,11,14,29,26,124,116,120,113,187,164,245,
241,237,145,144,143,128,143,146,136,227,232,225,223,243,227,207,216,216,208,
279,262,263,240,393,393,447,441,516,535,669,645,1031,996]} 1. e4 {[%emt 0:00:
00]} c5 {[%emt 0:00:25]} 2. Nf3 {[%emt 0:00:03]} e6 {[%emt 0:00:15]} 3. d4 {
[%emt 0:00:03]} cxd4 {[%emt 0:00:04]} 4. Nxd4 {[%emt 0:00:05]} a6 {[%emt 0:00:
00]} 5. Bd3 {[%emt 0:01:27]} Nf6 {[%emt 0:00:17]} 6. O-O {[%emt 0:03:01]} Qc7 {
[%emt 0:00:16]} 7. Be3 {[%emt 0:04:42]} d5 {[%emt 0:05:23]} 8. Nc3 {[%emt 0:00:
00] White wants to play exd5. B42: Sicilian: Kan Variation: 5 Bd3.} dxe4 {
[%emt 0:04:30]} 9. Nxe4 {[%emt 0:00:35]} Nbd7 {[%emt 0:10:24]} 10. c4 {[%emt 0:
00:00] [#] The position is equal.} Nxe4 $146 {[%emt 0:00:00]} ({Predecessor:} 
10... Ne5 11. Bf4 Nxe4 12. Bxe4 Bd6 13. Bg3 f5 14. Rc1 O-O 15. c5 fxe4 16. cxd6
Qxd6 17. Qh5 Qxd4 18. Bxe5 Qa4 19. Rc7 Bd7 20. b3 Qb5 21. a4 {1-0 (21)
Kuijpers,F (2390)-Van der Weide,K Netherlands 1992}) 11. Bxe4 {[%emt 0:00:03]
[%cal Yd4e6] Strongly threatening Nxe6!} Nf6 {[%emt 0:00:00]} 12. Bf3 {[%emt 0:
00:00]} Be7 {[%emt 0:05:23]} 13. c5 {[%emt 0:04:46]} e5 {[%emt 0:02:34]} (13...
O-O $11) 14. Qa4+ $16 {[%emt 0:05:29]} Bd7 {[%emt 0:03:10]} 15. c6 {[%emt 0:00:
00]} bxc6 {[%emt 0:00:42]} (15... O-O $16) 16. Nf5 $1 $18 {[%emt 0:00:27][%cal
Yd4f5,Yf5g7,Yg7e6]} ({And not} 16. Nxc6 e4 17. Rac1 Rc8 18. Nxe7 Bxa4 $15)
16... c5 {[%emt 0:08:26]} (16... Bf8 {might work better.}) 17. Nxg7+ {[%emt 0:
11:45]} Kf8 {[%emt 0:04:33] [#]} 18. Bh6 $1 {[%emt 0:03:11]} Bxa4 {[%emt 0:03:
25]} 19. Ne6+ $1 {[%emt 0:01:35] Discovered Attack (Double check), Double
Attack} Kg8 {[%emt 0:00:46]} 20. Nxc7 {[%emt 0:00:03]} Ra7 {[%emt 0:02:13]} 21.
Rfe1 {[%emt 0:05:47][%cal Ye1e5,Yf1e1,Ye1e4,Ye4g4] White is much more active.
The black rooks are badly placed.} e4 {[%emt 0:00:00] [#]} (21... Rxc7 $2 22.
Rxe5 Bc2 23. Rae1) (21... Bf8 $16 {keeps fighting.}) 22. Nd5 $1 {[%emt 0:00:25]
} Nxd5 {[%emt 0:05:40]} 23. Rxe4 {[%emt 0:00:02] Rg4+ would kill now.} Bc2 {
[%emt 0:01:34]} 24. Rg4+ $40 {[%emt 0:00:27] Discovered Attack. White goes for
the king.} Bg6 {[%emt 0:00:05]} 25. Bxd5 {[%emt 0:00:05]} Bf8 {[%emt 0:01:13]}
26. Be3 {[%emt 0:01:27]} Bg7 {[%emt 0:02:43]} 27. h4 {[%emt 0:00:27][%cal
Yh2h4,Yh4h5] Hoping for Rc1.} ({Don't play} 27. Bxc5 Rd7 $18) 27... Rd7 {
[%emt 0:00:00]} 28. Bb3 {[%emt 0:04:10] Threatens to win with Re1.} Bxb2 $2 {
[%emt 0:00:00]} (28... Rd6 {was worth a try.} 29. Bxc5 Rc6) 29. Re1 {[%emt 0:
00:42]} Bc3 {[%emt 0:08:21]} 30. Rc1 {[%emt 0:00:28] White is clearly winning.}
Bb2 {[%emt 0:00:54]} 31. Rxc5 {[%emt 0:01:04] Bh6 is the strong threat.} Kf8 {
[%emt 0:00:18]} 32. h5 {[%emt 0:02:13]} Bb1 {[%emt 0:03:02]} 33. Rc8+ {[%emt 0:
00:00] Weighted Error Value: White=0.07 (flawless) /Black=0.39} 1-0

[Event "44th Chess Olympiad Open 2022"]
[Site "Chennai"]
[Date "2022.08.07"]
[Round "9.30"]
[White "Saraci, Korab"]
[Black "Adly, Ahmed"]
[Result "0-1"]
[WhiteElo "2287"]
[BlackElo "2582"]
[Annotator "TA"]
[PlyCount "99"]
[EventDate "2022.??.??"]
[TimeControl "60"]

{[%evp 17,99,28,26,22,31,26,43,44,48,0,12,0,0,0,0,0,-3,-21,-31,-37,-24,-41,-41,
-45,-20,-30,-29,-25,-26,-26,-30,-33,-29,-29,-29,-31,-36,-50,-45,-57,-58,-73,
-52,-55,-52,-50,-50,-50,-55,-51,-56,-56,-40,-66,-66,-67,-66,-64,-18,-103,-103,
-103,-92,-77,-58,-118,-118,-121,-121,-188,-38,-68,-84,-73,-64,-63,-64,-62,-56,
-139,-135,-264,-264,-1538]} 1. e4 {[%emt 0:00:03]} c6 {[%emt 0:00:14]} 2. d4 {
[%emt 0:00:27]} d6 {[%emt 0:00:20]} 3. Nf3 {[%emt 0:01:00]} Nf6 {[%emt 0:00:04]
} 4. Nc3 {[%emt 0:03:14]} Bg4 {[%emt 0:00:15]} 5. Be2 {[%emt 0:03:17]} Nbd7 {
[%emt 0:00:34]} 6. h3 {[%emt 0:01:21]} Bxf3 {[%emt 0:00:03]} 7. Bxf3 {[%emt 0:
00:00]} e5 {[%emt 0:00:05]} 8. O-O {[%emt 0:00:38]} Be7 {[%emt 0:00:23]} 9. Be3
{[%emt 0:05:17]} O-O {[%emt 0:00:16]} 10. Qd2 {[%emt 0:03:23] B07: Pirc
Defence: Miscellaneous Systems.} Re8 {[%emt 0:00:03]} 11. Rad1 {[%emt 0:02:22]}
Bf8 {[%emt 0:01:08] [#]} 12. d5 $146 {[%emt 0:05:06] White is slightly better.}
({Predecessor:} 12. g4 Nb6 13. b3 Qc7 14. Bg2 Rad8 15. f4 Nfd7 16. Qf2 exd4 17.
Bxd4 c5 18. Nb5 {½-½ (40) Wagner Michel,A (2121)-Schmidt,J (2168) Germany
1999}) 12... h6 {[%emt 0:01:48]} 13. b4 {[%emt 0:08:41]} Qc7 {[%emt 0:08:31]}
14. a4 {[%emt 0:01:45]} (14. dxc6 {keeps more tension.} Qxc6 15. Rb1 Nb6 16.
Bxb6 Rec8 17. Bd4) 14... Rec8 {[%emt 0:05:35]} 15. a5 {[%emt 0:06:33]} cxd5 {
[%emt 0:00:54]} 16. Nxd5 {[%emt 0:00:05]} Nxd5 {[%emt 0:00:04]} 17. Qxd5 {
[%emt 0:01:16]} Nf6 {[%emt 0:00:16]} 18. Qb5 {[%emt 0:00:45]} a6 {[%emt 0:00:
00]} 19. Qb6 {[%emt 0:03:14]} Qxb6 {[%emt 0:05:29]} 20. Bxb6 {[%emt 0:01:28]}
Rxc2 {[%emt 0:00:51]} 21. Rc1 {[%emt 0:00:51]} Rac8 {[%emt 0:00:22]} 22. Rxc2 {
[%emt 0:01:21]} Rxc2 {[%emt 0:00:03]} 23. Rb1 {[%emt 0:09:23]} d5 {[%emt 0:00:
00]} 24. exd5 {[%emt 0:00:00]} e4 {[%emt 0:00:02]} 25. Bd1 {[%emt 0:00:00]} Rc4
{[%emt 0:00:02]} 26. b5 {[%emt 0:06:21]} axb5 {[%emt 0:01:52]} 27. Bb3 {
[%emt 0:00:05]} Rc8 {[%emt 0:00:49]} (27... Nxd5 $2 28. Bxc4 bxc4 29. Rb5 $18)
28. Be3 {[%emt 0:05:40]} Bd6 {[%emt 0:00:43]} 29. Kf1 {[%emt 0:01:01]} b4 {
[%emt 0:03:22] Black is more active.} 30. Bd2 {[%emt 0:04:11]} Ra8 {[%emt 0:00:
00]} 31. Bc4 {[%emt 0:07:20]} Rxa5 {[%emt 0:00:00]} 32. Bxb4 {[%emt 0:00:08]}
Ra4 {[%emt 0:00:03][%cal Ya5a4,Ya4c4,Yc4c2]} 33. Bxd6 {[%emt 0:00:14]} Rxc4 $15
{[%emt 0:00:00] Endgame KRB-KRN} 34. Rd1 {[%emt 0:03:48]} Nd7 35. Ke2 {[%emt 0:
04:29]} f5 {[%emt 0:00:00]} 36. g4 {[%emt 0:05:13]} fxg4 {[%emt 0:01:46]} 37.
hxg4 {[%emt 0:00:06]} Kf7 {[%emt 0:00:03]} (37... g5 $15 {might be stronger.})
38. Bf4 {[%emt 0:01:02]} (38. Rb1 $11 {keeps the balance.}) 38... Rc2+ $17 {
[%emt 0:01:03]} 39. Ke3 {[%emt 0:01:21]} g5 {[%emt 0:01:10]} 40. Bg3 {[%emt 0:
00:00]} Nf6 {[%emt 0:06:02]} 41. Rb1 {[%emt 0:00:47] [#]} ({White should try} 
41. d6 $15 Rc3+ 42. Ke2) 41... b6 $1 {[%emt 0:25:39]} ({Worse is} 41... Nxg4+
42. Kxe4 Kg6 43. d6 $15) 42. d6 {[%emt 0:01:44]} Ke6 {[%emt 0:00:35]} 43. Kd4 {
[%emt 0:02:24]} (43. Rb5 $17) 43... Rc6 {[%emt 0:00:00]} ({Inferior is} 43...
Nxg4 44. Rxb6 Rd2+ 45. Kxe4 $15) (43... Rd2+ $19 44. Ke3 Rd3+ 45. Ke2 Rd5) 44.
Rh1 {[%emt 0:20:10]} Nxg4 {[%emt 0:00:00]} 45. Kxe4 {[%emt 0:00:26]} h5 {
[%emt 0:00:00] Threatens to win with ...h4.} 46. Re1 $1 {[%emt 0:01:01]} Kd7 {
[%emt 0:00:00]} 47. f3 {[%emt 0:01:11]} Nh6 {[%emt 0:00:00]} 48. Ra1 {[%emt 0:
00:31] [#]} (48. Bh2 $15) 48... Ke6 $1 {[%emt 0:02:22]} 49. Rd1 {[%emt 0:01:15]
} (49. Bf2 $17 {was worth a try.}) 49... Nf5 $19 {[%emt 0:00:00] And now ...
Rc4+ would win.} 50. Bh2 $2 {[%emt 0:02:03] Weighted Error Value: White=0.19 
(very precise) /Black=0.11 (very precise)} (50. Bf2) 0-1

[Event "44th Chess Olympiad Open 2022"]
[Site "Chennai"]
[Date "2022.08.07"]
[Round "9.30"]
[White "Asllani, Muhamet"]
[Black "Hesham, Abdelrahman"]
[Result "1-0"]
[WhiteElo "2235"]
[BlackElo "2386"]
[Annotator "TA"]
[PlyCount "95"]
[EventDate "2022.??.??"]
[TimeControl "60"]

{[%evp 11,95,5,0,-18,-13,-13,0,0,0,-30,0,-20,-10,-4,-5,-3,37,0,0,0,0,0,1,1,1,2,
7,0,0,-26,0,-35,0,-11,64,66,144,121,339,323,330,333,330,325,327,277,280,279,
458,469,441,430,533,533,598,592,506,486,478,449,565,567,666,660,646,578,659,
653,610,560,563,429,1368,1412,1090,910,1933,1891,1472,1372,7277,10250,29981,
5724,29984,29985]} 1. Nf3 {[%emt 0:00:05]} d5 {[%emt 0:00:13]} 2. d4 {[%emt 0:
00:00]} Nf6 {[%emt 0:00:11]} 3. Bg5 {[%emt 0:00:27]} Nbd7 {[%emt 0:00:26]} 4.
e3 {[%emt 0:00:10]} e6 {[%emt 0:01:36]} 5. Nbd2 {[%emt 0:00:07]} Be7 {[%emt 0:
00:00]} 6. c4 {[%emt 0:00:06]} O-O {[%emt 0:00:12]} 7. Bd3 {[%emt 0:00:06] D30:
Queen's Gambit Declined: Systems without Nc3.} c5 {[%emt 0:00:16]} 8. cxd5 {
[%emt 0:01:38]} exd5 {[%emt 0:00:05]} 9. O-O {[%emt 0:00:36] The position is
equal.} b6 {[%emt 0:00:38] [#]} 10. Qa4 $146 {[%emt 0:01:08]} ({Predecessor:} 
10. Rc1 h6 11. Bh4 Bb7 12. Qc2 Rc8 13. Qb1 Re8 14. Bf5 Rc6 15. Rc3 Qc7 16. Rfc1
{1-0 (67) Illingworth,J (1639)-Watkins,S (1271) London 2018}) 10... a6 {
[%emt 0:01:37]} 11. Ne5 {[%emt 0:00:40]} Nxe5 {[%emt 0:00:09]} 12. dxe5 {
[%emt 0:00:10]} Ng4 {[%emt 0:00:13]} 13. Bf4 {[%emt 0:02:13][%cal Yg5f4,Yf4e5,
Ye5c3,Yc3b4]} c4 {[%emt 0:02:27]} 14. Be2 {[%emt 0:02:27]} (14. Bb1 $5 {
[%cal Rh2h3]}) 14... f6 {[%emt 0:00:59]} 15. Qc6 {[%emt 0:03:22]} Ra7 {[%emt 0:
01:01][%cal Ya8a7,Ya7d7,Yd7d6]} 16. Nf3 {[%emt 0:21:49]} fxe5 {[%emt 0:06:55]}
17. Nxe5 {[%emt 0:00:00]} Nxe5 {[%emt 0:00:12]} 18. Bxe5 {[%emt 0:00:10] White
wants to play Rfd1.} Bf6 $1 {[%emt 0:00:07]} 19. Bc3 {[%emt 0:07:04]} Rd7 {
[%emt 0:06:40]} 20. Rad1 {[%emt 0:17:35][%cal Yd1d5]} Rd6 {[%emt 0:32:56]} 21.
Qa4 {[%emt 0:00:00]} b5 {[%emt 0:00:46]} 22. Qa3 {[%emt 0:00:00]} d4 {[%emt 0:
01:07]} ({Black should try} 22... Bxc3 $1 $11 23. Qxc3 Rg6) 23. exd4 $14 {
[%emt 0:00:00] Ba5 is the strong threat.} (23. Bb4 d3 24. Bxd3 (24. Bxd6 $2
dxe2 25. Rd2 exf1=N $19) 24... Rxd3 $11) 23... Bxd4 {[%emt 0:07:47]} ({Black
should play} 23... Rd7 $14) 24. Bb4 $1 $16 {[%emt 0:00:00]} Bxf2+ $2 {[%emt 0:
00:31] A mistake that costs the game.} 25. Kh1 $18 {[%emt 0:00:00]} Rxd1 {
[%emt 0:00:11]} 26. Rxd1 {[%emt 0:00:00]} Qe8 {[%emt 0:00:08][%cal Ye8e2] [#]}
27. Bxc4+ {[%emt 0:01:40]} bxc4 {[%emt 0:02:37]} 28. Bxf8 {[%emt 0:20:28]} Bg4
{[%emt 0:20:43]} 29. Rc1 {[%emt 0:03:48] Threatens to win with Bc5.} ({Resist} 
29. Rf1 $6 Qe2 30. Rc1 h6 $18) 29... Bd4 {[%emt 0:06:08]} (29... Qxf8 30. Qxf8+
(30. Qxa6 Qf4 $16) 30... Kxf8) 30. Bc5 {[%emt 0:00:00]} Bf6 {[%emt 0:00:01]}
31. Qxa6 {[%emt 0:00:35]} Be2 {[%emt 0:02:37]} 32. Re1 {[%emt 0:00:00]} Qd7 {
[%emt 0:00:20]} 33. Qa8+ {[%emt 0:02:36]} Kf7 {[%emt 0:00:00]} 34. Qf8+ {
[%emt 0:00:00]} Kg6 35. Qd6 {[%emt 0:00:00]} Qf5 {[%emt 0:02:15]} 36. Bd4 Bd3 {
[%emt 0:02:41]} 37. Bxf6 {[%emt 0:00:00]} gxf6 {[%emt 0:00:00] Endgame KQR-KQB}
38. a3 {[%emt 0:02:58]} Qb5 {[%emt 0:00:00]} 39. Re3 {[%emt 0:03:47]} Qxb2 {
[%emt 0:00:59] ( -> ...Qb1+)} 40. Rg3+ {[%emt 0:00:00]} Kh5 {[%emt 0:00:35]
[%cal Rb2a1]} 41. Qd5+ {[%emt 0:04:14]} Qe5 {[%emt 0:00:00]} (41... Kh6 $142
42. h3 Qa1+ 43. Kh2 Qe5 44. Qxe5 fxe5) 42. Qxe5+ {[%emt 0:01:14]} fxe5 {
[%emt 0:07:59] KR-KB} 43. Kg1 {[%emt 0:00:00][%cal Yg3d3] Black must now
prevent Rxd3!} e4 {[%emt 0:00:23]} 44. Kf2 {[%emt 0:00:00][%cal Yg3d3] aiming
for Rxd3!} c3 {[%emt 0:00:39]} 45. Ke1 {[%emt 0:00:00] Strongly threatening a4.
} Kh6 {[%emt 0:00:27]} 46. a4 {[%emt 0:00:00][%cal Yg3d3] Intending Rxd3! and
mate.} Kh5 {[%emt 0:00:23] [#]} 47. a5 {[%emt 0:00:00]} (47. Rxd3 $142 $1 exd3
48. a5 Kh6 49. a6 Kg6 50. a7 Kg7 51. a8=Q h5 52. Qb7+ Kg8 53. Qc8+ Kg7 54.
Qxc3+ Kf7 55. Qe5) 47... Kh6 {[%emt 0:00:24] [#]} 48. Rxd3 $1 {[%emt 0:00:00]
Weighted Error Value: White=0.10 (very precise) /Black=0.42} 1-0